bitfinex-derivatives/quotes_ETHF0:USTF0_20250501
["timestamp","ask_amount","ask_price","bid_price","bid_amount"]
[1746115897026,1.8035,1859.9,1859.8,2.87725]
[1746115897330,1.07486,1860.1,1859.9,1.07495]
[1746115897535,1.07486,1860.1,1860.0,2.87713]
[1746115898031,1.8035,1860.2,1860.1,1.07483]
[1746115898228,3.4246,1860.3,1860.2,1.07477]
[1746115898427,1.8035,1860.3,1860.2,1.07477]
[1746115898629,1.8035,1860.3,1860.2,2.87707]
[1746115900535,1.8035,1860.3,1860.2,6.58207]
[1746115906138,1.07469,1860.4,1860.3,1.07471]
[1746115906333,1.07469,1860.4,1860.3,2.89411]
[1746115906540,2.74985,1860.5,1860.4,1.07466]
[1746115908041,1.6752,1860.5,1860.2,3.705]
[1746115908241,3.4246,1860.6,1859.9,4.42355]
[1746115908242,3.2078,1860.3,1859.9,3.685]
[1746115908433,1.07489,1860.0,1859.9,4.75992]
[1746115908933,2.91627,1860.1,1860.0,1.07489]
[1746115909140,1.8414,1860.1,1860.0,1.07489]
[1746115909541,1.8414,1860.1,1860.0,2.86639]
[1746115909851,1.7129,1860.2,1860.1,1.07483]
[1746115910147,1.7129,1860.2,1860.1,4.66043]
[1746115910641,2.91617,1860.3,1860.2,1.07477]
[1746115910844,2.91617,1860.3,1860.2,4.75977]
[1746115911546,1.8414,1860.3,1860.2,4.75977]
[1746115911848,1.8414,1860.3,1860.2,6.49427]
[1746115912648,1.07466,1860.4,1860.3,1.07471]
[1746115912846,1.07466,1860.4,1860.3,2.80921]
[1746115913048,2.82746,1860.4,1860.3,2.80921]
[1746115915145,1.7528,1860.4,1860.3,2.80921]
[1746115915338,1.07448,1860.8,1860.7,1.07445]
[1746115915852,1.8323,1860.8,1860.7,1.07445]
[1746115916045,3.53758904,1861.1,1860.7,7.68618]
[1746115916347,5.36988904,1861.1,1861.0,1.07431]
[1746115916548,5.36988904,1861.1,1861.0,4.75931]
[1746115917647,6.44413904,1861.1,1861.0,3.685]
[1746115918051,1.07443,1860.8,1860.7,6.49264]
[1746115918249,1.07441,1860.9,1860.8,1.0744]
[1746115918450,2.89155,1861.0,1860.9,1.07437]
[1746115918952,1.07437,1860.9,1860.8,2.80761]
[1746115919151,1.07443,1860.8,1860.7,7.96727]
[1746115919354,1.8172,1860.9,1860.8,1.07443]
[1746115919651,1.8172,1860.9,1860.8,2.80763]
[1746115920147,2.89157,1860.9,1860.8,2.80763]
[1746115920543,2.89157,1860.9,1860.7,3.685]
[1746115920544,1.07443,1860.8,1860.7,3.685]
[1746115920750,6.30453,1860.8,1860.7,3.685]
[1746115921456,9.51233,1860.8,1860.7,3.685]
[1746115924859,1.0746,1860.5,1860.4,4.75861]
[1746115925650,1.0746,1860.5,1860.4,6.43061]
[1746115925855,2.89669,1860.6,1860.5,1.0746]
[1746115927160,1.0746,1860.5,1860.4,6.4306]
[1746115927362,2.7425,1860.5,1860.4,6.4306]
[1746115927555,2.7425,1860.5,1860.4,3.684]
[1746115929259,4.4659,1860.5,1860.4,3.684]
[1746115930862,4.4659,1860.5,1860.4,4.75866]
[1746115931358,1.07456,1860.7,1860.6,1.0745]
[1746115931857,2.81186,1860.7,1860.6,1.0745]
[1746115934959,1.07454,1860.6,1860.5,2.91566]
[1746115935164,2.75684,1860.6,1860.5,2.91566]
[1746115935866,1.6823,1860.6,1860.5,2.91566]
[1746115936058,2.75684,1860.6,1860.5,2.91566]
[1746115936562,1.6823,1860.6,1860.5,2.91566]
[1746115937568,1.6823,1860.6,1860.5,6.12346]
[1746115937759,4.28215,1861.0,1860.9,1.07437]
[1746115938067,1.07441,1860.9,1860.8,1.07438]
[1746115938266,2.74231,1860.9,1860.8,1.07438]
[1746115939068,1.6679,1860.9,1860.8,1.07438]
[1746115939262,1.6679,1860.9,1860.8,2.76638]
[1746115940171,2.74227,1860.9,1860.8,2.76638]
[1746115940865,1.6679,1860.9,1860.8,2.76638]
[1746115941566,1.08157087,1861.1,1861.0,1.07431]
[1746115941871,0.00727087,1861.1,1861.0,1.07431]
[1746115942169,1.76977087,1861.1,1861.0,2.90301]
[1746115942668,8.57849,1861.4,1861.2,1.07416]
[1746115942669,3.2078,1861.4,1861.2,1.07416]
[1746115942865,1.07425,1861.2,1861.1,1.07423]
[1746115943163,1.07425,1861.1,1861.0,12.51797]
[1746115943374,2.83674,1861.2,1861.1,1.07425]
[1746115945172,1.07425,1861.1,1861.0,5.932]
[1746115945372,2.76925,1861.1,1861.0,5.932]
[1746115945573,2.76925,1861.1,1861.0,7.00631]
[1746115945974,1.695,1861.1,1861.0,7.00631]
[1746115946272,1.695,1861.1,1861.0,1.07431]
[1746115946574,2.76925,1861.1,1861.0,1.07431]
[1746115947073,1.07424,1861.2,1861.1,1.07419]
[1746115947275,5.97704,1861.2,1861.1,1.07419]
[1746115947473,2.76924,1861.2,1861.1,1.07419]
[1746115947675,2.76924,1861.2,1861.1,2.77159]
[1746115947878,5.97704,1861.2,1861.1,1.07419]
[1746115948067,2.76924,1861.2,1861.1,1.07419]
[1746115948674,1.07425,1861.1,1861.0,4.59567]
[1746115948871,2.88665,1861.1,1861.0,4.59567]
[1746115949066,2.88665,1861.1,1860.8,12.30107]
[1746115949067,1.07437,1860.9,1860.8,10.68936]
[1746115949269,1.07437,1860.9,1860.8,4.75736]
[1746115949573,1.07443,1860.8,1860.7,1.07444]
[1746115950276,2.88683,1860.8,1860.7,1.07444]
[1746115952771,2.88683,1860.8,1860.6,5.932]
[1746115952772,1.07448,1860.7,1860.6,5.932]
[1746115953079,4.46908,1860.7,1860.6,7.00654]
[1746115953476,1.7263,1860.7,1860.6,7.00654]
[1746115953665,1.7263,1860.7,1860.6,8.81984]
[1746115954379,2.80078,1860.7,1860.6,8.81984]
[1746115954885,2.80078,1860.7,1860.6,7.00654]
[1746115955178,2.80078,1860.7,1860.6,1.07454]
[1746115961775,2.80078,1860.7,1860.6,2.79924]
[1746115963588,2.80078,1860.7,1860.6,1.07454]
[1746115964483,1.07454,1860.6,1860.5,1.07455]
[1746115964684,4.61764,1860.6,1860.5,1.07455]
[1746115965878,1.0746,1860.5,1860.4,7.96543]
[1746115966082,4.6955,1860.5,1860.4,7.96543]
[1746115967583,1.7728,1860.5,1860.4,7.96543]
[1746115967784,1.07458,1860.6,1860.5,1.0746]
[1746115967983,2.84738,1860.6,1860.5,2.8687]
[1746115970687,4.28227,1860.8,1860.5,1.7941]
[1746115970989,4.28227,1860.8,1860.7,1.07448]
[1746115971689,4.28227,1860.8,1860.7,2.86768]
[1746115973089,1.07447,1860.8,1860.7,2.86768]
[1746115974588,4.44387,1860.9,1860.4,6.8908]
[1746115974792,1.0746,1860.5,1860.4,7.96543]
[1746115975291,4.73779,1860.6,1860.5,1.0746]
[1746115975498,3.6632,1860.6,1860.5,1.0746]
[1746115975798,4.73774,1860.6,1860.5,2.8634]
[1746115976490,3.6632,1860.6,1860.5,2.8634]
[1746115976691,1.0745,1860.7,1860.6,1.07454]
[1746115976893,1.0745,1860.7,1860.6,4.67074]
[1746115977793,2.8197,1860.7,1860.6,4.67074]
[1746115978091,2.8197,1860.7,1860.6,2.88194]
[1746115978290,1.07454,1860.6,1860.5,1.07455]
[1746115978491,4.55844,1860.6,1860.5,1.07455]
[1746115979191,1.0746,1860.5,1860.4,9.75161]
[1746115979392,2.8198,1860.5,1860.4,6.54381]
[1746115981789,2.8198,1860.5,1860.4,3.683]
[1746115982091,4.5805,1860.5,1860.4,3.683]
[1746115982791,6.19253,1860.5,1860.1,17.84657719]
[1746115982989,4.28257,1860.2,1860.1,7.15979719]
[1746115983786,11.02727,1860.2,1860.1,7.15979719]
[1746115984895,11.02727,1860.2,1860.1,2.13207224]
[1746115986996,2.6871,1860.1,1859.7,1.07501]
[1746115987196,1.075,1859.8,1859.7,1.07501]
[1746115987995,1.07506,1859.7,1859.6,6.51229]
[1746115988294,2.76416,1859.7,1859.6,3.68]
[1746115988689,5.2202,1859.7,1859.4,12.7096]
[1746115988995,1.07518,1859.5,1859.4,8.76443]
[1746115989194,1.6891,1859.6,1859.4,8.76443]
[1746115989195,2.76428,1859.6,1859.5,1.07518]
[1746115989587,2.76428,1859.6,1859.5,2.83238]
[1746115990995,1.07512,1859.6,1859.5,2.83238]
[1746115991999,1.07512,1859.6,1859.5,1.7572]
[1746115992296,2.77922,1859.6,1859.5,1.7572]
[1746115992485,2.77922,1859.6,1859.5,2.83238]
[1746115992797,2.77922,1859.6,1859.5,1.7572]
[1746115993204,1.07518,1859.5,1859.4,2.8289]
[1746115993404,2.79248,1859.5,1859.4,4.6745]
[1746115995098,1.07518,1859.6,1859.5,1.07514]
[1746115995303,1.0751,1859.7,1859.6,1.07506]
[1746115997798,2.7596,1859.7,1859.6,1.07506]
[1746115998095,1.07518,1859.5,1859.4,2.82889]
[1746115998295,1.07518,1859.5,1859.4,2.82893]
[1746115998602,1.07518,1859.5,1859.4,1.7537]
[1746115998807,2.75968,1859.5,1859.4,2.82893]
[1746116000196,2.75968,1859.5,1859.4,1.07523]
[1746116000398,1.07545,1859.1,1859.0,4.75239]
[1746116000604,1.0754,1859.2,1859.1,1.07537]
[1746116000901,1.0754,1859.2,1859.1,2.86227]
[1746116001100,2.8413,1859.2,1859.1,1.7869]
[1746116001295,1.07541,1859.1,1859.0,8.42143]
[1746116001500,1.07547,1859.0,1858.9,2.86238]
[1746116001701,1.07547,1859.1,1859.0,1.07543]
[1746116001902,1.07547,1859.0,1858.9,4.69149]
[1746116002093,1.07547,1859.0,1858.9,3.616]
[1746116002293,1.07552,1858.9,1858.8,18.08283888]
[1746116002497,1.07552,1858.9,1858.8,14.32503888]
[1746116002697,1.07551,1859.0,1858.8,3.678]
[1746116002909,1.07549,1859.0,1858.9,1.07548]
[1746116003105,1.07549,1859.0,1858.9,2.87628]
[1746116004805,3.2078,1859.5,1858.9,15.9406]
[1746116005003,3.2078,1859.5,1859.4,1.07523]
[1746116005203,1.07523,1859.4,1859.3,4.75325]
[1746116005400,1.07522,1859.5,1859.4,1.07521]
[1746116005706,1.07516,1859.6,1859.5,1.07518]
[1746116006706,1.7008,1859.7,1859.6,1.07512]
[1746116006907,6.8345,1859.8,1859.7,1.07506]
[1746116007209,1.07505,1859.8,1859.7,1.07506]
[1746116007506,1.07506,1859.7,1859.6,4.55568]
[1746116007805,1.7008,1859.9,1859.6,10.3664]
[1746116008008,9.43231904,1860.3,1860.2,1.07477]
[1746116008009,3.53758904,1860.3,1860.2,1.07477]
[1746116008502,1.07473,1860.3,1860.2,1.07477]
[1746116008708,9.91951553,1860.3,1860.2,4.74597]
[1746116009207,9.91951553,1860.3,1860.2,3.6712]
[1746116009407,9.91951553,1860.3,1860.2,4.74597]
[1746116010710,8.84478553,1860.3,1860.2,4.74597]
[1746116012611,2.86386,1860.4,1860.3,1.07471]
[1746116012801,1.7892,1860.4,1860.3,1.07471]
[1746116012999,2.86386,1860.4,1860.3,1.07471]
[1746116013410,1.7892,1860.4,1860.3,1.07471]
[1746116015212,1.07464,1860.5,1860.4,1.07466]
[1746116015413,7.85949,1860.6,1860.4,1.07466]
[1746116015613,1.0746,1860.5,1860.4,1.07466]
[1746116015817,1.7695,1860.5,1860.4,1.07466]
[1746116016314,2.8441,1860.5,1860.4,1.07466]
[1746116016616,1.7695,1860.5,1860.4,1.07466]
[1746116016913,4.28239,1860.6,1860.5,1.0746]
[1746116017212,1.07459,1860.6,1860.5,1.0746]
[1746116017412,2.84401,1860.7,1860.6,1.07454]
[1746116018116,1.7695,1860.7,1860.6,1.07454]
[1746116018615,1.07454,1860.6,1860.5,1.07456]
[1746116019712,1.07454,1860.6,1860.4,3.677]
[1746116019713,1.0746,1860.5,1860.4,3.677]
[1746116020010,6.09364,1860.5,1860.4,1.07466]
[1746116020214,2.88584,1860.5,1860.4,1.07466]
[1746116021318,2.8858,1860.5,1860.4,1.07466]
[1746116023612,1.8112,1860.5,1860.4,1.07466]
[1746116023919,2.8858,1860.5,1860.4,1.07466]
[1746116025017,4.6005,1860.5,1860.4,1.07466]
[1746116026015,1.07466,1860.4,1860.3,6.42388]
[1746116026319,1.6873,1860.4,1860.3,4.75068]
[1746116026521,1.6873,1860.4,1860.3,6.56988]
[1746116028021,2.78932,1860.5,1860.4,1.07466]
[1746116028221,2.78932,1860.5,1860.4,2.89386]
[1746116028631,1.837,1860.6,1860.5,1.0746]
[1746116028922,1.07448,1860.8,1860.5,6.32095]
[1746116029121,1.07448,1860.8,1860.7,1.07448]
[1746116029625,2.89648,1860.8,1860.7,2.90238]
[1746116032325,1.822,1860.8,1860.7,2.90238]
[1746116032718,2.89643,1860.8,1860.7,2.90238]
[1746116034522,1.822,1860.8,1860.7,2.90238]
[1746116034718,2.89643,1860.8,1860.7,2.90238]
[1746116035326,1.822,1860.8,1860.7,2.90238]
[1746116036020,2.90931,1860.9,1860.8,1.07443]
[1746116036224,4.59431,1860.9,1860.8,1.07443]
[1746116039024,3.5199,1860.9,1860.8,1.07443]
[1746116039326,4.59427,1860.9,1860.8,1.07443]
[1746116040321,2.75937,1860.9,1860.8,1.07443]
[1746116040722,2.75937,1860.9,1860.6,9.56502]
[1746116040723,1.07448,1860.8,1860.7,1.07444]
[1746116040929,2.85008,1860.8,1860.7,1.07444]
[1746116041627,1.7756,1860.8,1860.7,1.07444]
[1746116043329,1.7756,1860.8,1860.7,2.92214]
[1746116048730,1.7756,1860.8,1860.5,3.6316]
[1746116048925,1.07454,1860.7,1860.4,9.56544]
[1746116049235,1.6697,1860.6,1860.5,2.927]
[1746116049431,1.6697,1860.6,1860.5,4.7666]
[1746116049631,2.74424,1860.6,1860.5,4.7666]
[1746116049827,1.0746,1860.5,1860.4,3.671]
[1746116050031,2.7443,1860.5,1860.4,3.671]
[1746116050232,2.7443,1860.5,1860.4,4.74566]
[1746116050634,1.6697,1860.5,1860.4,4.74566]
[1746116050834,2.7443,1860.5,1860.4,4.74566]
[1746116054535,1.6697,1860.5,1860.4,6.47766]
[1746116054928,2.7443,1860.5,1860.4,8.27836]
[1746116055438,2.7443,1860.5,1860.4,4.74566]
[1746116057128,2.7443,1860.5,1860.4,3.671]
[1746116057326,2.7443,1860.5,1860.4,4.74566]
[1746116058235,2.7443,1860.5,1860.4,3.671]
[1746116058831,5.9521,1860.5,1860.4,3.671]
[1746116059137,1.07471,1860.3,1860.2,4.73976]
[1746116059340,1.07471,1860.3,1860.2,3.665]
[1746116059532,4.28251,1860.3,1860.2,3.665]
[1746116059838,6.01351,1860.3,1860.2,3.665]
[1746116060734,2.80571,1860.3,1860.2,4.73977]
[1746116061331,2.80571,1860.3,1860.2,6.54677]
[1746116061739,2.75878,1860.6,1860.5,1.0746]
[1746116061933,4.48888,1860.6,1860.5,1.0746]
[1746116062136,4.48884,1860.6,1860.5,1.0746]
[1746116062332,4.48884,1860.6,1860.5,4.7396]
[1746116062533,1.7301,1860.6,1860.5,6.5466]
[1746116062734,2.80464,1860.6,1860.5,6.5466]
[1746116064042,2.80464,1860.6,1860.5,5.472]
[1746116064338,6.01244,1860.6,1860.5,3.665]
[1746116064937,4.9379,1860.6,1860.2,3.4192]
[1746116065136,1.07466,1860.4,1860.3,3.665]
[1746116065538,6.36616,1860.4,1860.3,4.73971]
[1746116066242,6.36616,1860.4,1860.3,3.665]
[1746116066444,6.36616,1860.4,1860.3,4.73971]
[1746116067643,6.36616,1860.4,1860.3,6.41881]
[1746116070952,4.53716,1860.4,1860.3,6.41881]
[1746116071452,1.07466,1860.4,1860.3,6.41881]
[1746116071654,1.07465,1860.5,1860.4,1.0746]
[1746116071854,1.07465,1860.5,1860.4,2.7666]
[1746116072049,2.82155,1860.5,1860.4,2.7666]
[1746116072655,2.82155,1860.5,1860.4,4.5342]
[1746116073562,1.07465,1860.5,1860.4,4.5342]
[1746116073962,4.28239,1860.6,1860.5,1.0746]
[1746116074263,4.28239,1860.6,1860.5,4.5988]
[1746116074659,6.05119,1860.6,1860.5,4.5988]
[1746116074964,2.84339,1860.6,1860.5,4.5988]
[1746116075261,1.7688,1860.6,1860.5,10.5308]
[1746116075563,3.54485141,1860.8,1860.7,1.07448]
[1746116075764,3.54485141,1860.8,1860.7,7.94728]
[1746116076066,4.61928141,1860.8,1860.7,4.73948]
[1746116076254,6.44328141,1860.8,1860.7,4.73948]
[1746116076767,5.36885141,1860.8,1860.7,4.73948]
[1746116076966,6.44328141,1860.8,1860.7,4.73948]
[1746116077269,2.89843,1860.8,1860.7,4.73948]
[1746116077756,1.824,1860.8,1860.7,4.73948]
[1746116077956,2.89843,1860.8,1860.7,4.73948]
[1746116078868,1.824,1860.8,1860.7,4.73948]
[1746116079168,2.89843,1860.8,1860.7,4.73948]
[1746116079368,1.824,1860.8,1860.7,4.73948]
[1746116079869,1.824,1860.8,1860.7,6.51408]
[1746116080072,2.89843,1860.8,1860.7,6.51408]
[1746116080667,2.89843,1860.8,1860.7,4.73948]
[1746116080868,2.89843,1860.8,1860.7,3.665]
[1746116081463,6.824,1860.8,1860.4,4.73963]
[1746116081665,1.0746,1860.5,1860.4,4.73963]
[1746116082166,4.61937,1860.6,1860.5,1.0746]
[1746116082368,4.61937,1860.6,1860.5,4.5907]
[1746116083871,4.61937,1860.6,1860.5,3.5161]
[1746116084170,1.0746,1860.5,1860.4,4.73962]
[1746116084369,2.8101,1860.5,1860.4,4.73962]
[1746116084570,2.8101,1860.5,1860.4,3.665]
[1746116085271,2.8101,1860.5,1860.4,4.73966]
[1746116085663,2.8101,1860.5,1860.0,10.21463]
[1746116085664,9.9433,1860.5,1860.0,10.21463]
[1746116085867,4.28263,1860.1,1860.0,4.73983]
[1746116086467,1.07483,1860.1,1860.0,4.73983]
[1746116086667,4.53413,1860.1,1860.0,4.73989]
[1746116087074,4.53413,1860.1,1860.0,3.665]
[1746116087569,4.53413,1860.1,1860.0,4.73989]
[1746116087775,1.8529,1860.2,1860.1,1.07483]
[1746116087970,2.92772,1860.2,1860.1,2.82693]
[1746116088175,4.67002,1860.2,1860.1,2.82693]
[1746116089965,1.07483,1860.1,1860.0,3.665]
[1746116090168,2.81713,1860.1,1860.0,3.665]
[1746116090369,4.55233,1860.1,1860.0,3.665]
[1746116091178,7.76013,1860.1,1860.0,3.665]
[1746116091877,4.55233,1860.1,1860.0,3.665]
[1746116092680,7.76013,1860.1,1860.0,3.665]
[1746116094774,1.075,1859.8,1859.7,11.3672]
[1746116095076,1.07506,1859.7,1859.6,4.55407]
[1746116095271,4.48546,1859.7,1859.6,4.73407]
[1746116095673,4.48546,1859.7,1859.5,2.77273]
[1746116095879,2.76092,1859.6,1859.5,1.07513]
[1746116097478,1.07518,1859.5,1859.4,15.38124888]
[1746116097677,4.66178,1859.5,1859.4,15.38124888]
[1746116098781,4.66178,1859.5,1859.4,15.38126888]
[1746116099278,7.86958,1859.5,1859.4,3.659]
[1746116099474,7.86958,1859.5,1859.0,15.45802]
[1746116099680,1.07541,1859.1,1859.0,8.667]
[1746116099879,1.07541,1859.1,1859.0,5.4592]
[1746116100280,1.07547,1859.0,1858.9,10.64703888]
[1746116100480,4.28327,1859.0,1858.9,10.64703888]
[1746116100887,5.98997,1859.0,1858.9,10.64703888]
[1746116101280,5.98997,1859.0,1858.9,11.72255888]
[1746116101581,2.78217,1859.0,1858.9,15.27745888]
[1746116102778,2.78217,1859.0,1858.9,12.44723888]
[1746116103385,2.78217,1859.0,1858.9,10.64703888]
[1746116103684,5.98997,1859.0,1858.9,10.64703888]
[1746116104083,1.07564,1858.7,1858.6,5.932]
[1746116104280,1.0757,1858.6,1858.5,3.66]
[1746116104480,1.07575,1858.5,1858.4,1.07579]
[1746116104683,2.75504,1858.6,1858.5,1.07575]
[1746116104884,4.54964,1858.6,1858.5,1.07575]
[1746116105080,1.07567,1858.7,1858.5,1.07575]
[1746116105286,1.07567,1858.7,1858.6,2.9196]
[1746116105984,2.87927,1858.7,1858.6,2.9196]
[1746116106175,2.87927,1858.7,1858.6,1.8439]
[1746116106486,2.87927,1858.7,1858.6,2.9196]
[1746116106686,2.87927,1858.7,1858.6,1.8439]
[1746116106890,2.87927,1858.7,1858.6,2.9196]
[1746116107286,2.87927,1858.7,1858.6,1.8439]
[1746116107478,2.87924,1858.7,1858.6,2.9196]
[1746116107686,2.87924,1858.7,1858.6,3.6317]
[1746116107884,2.87924,1858.7,1858.6,4.7074]
[1746116108386,1.8036,1858.7,1858.6,4.7074]
[1746116108591,3.2078,1858.8,1858.7,1.07564]
[1746116108793,3.2078,1858.8,1858.7,2.75164]
[1746116109392,6.03181,1858.8,1858.7,1.676]
[1746116109588,1.07564,1858.7,1858.6,1.7878]
[1746116109886,4.43762,1858.7,1858.0,5.932]
[1746116110088,1.07596,1858.2,1858.1,10.07923]
[1746116110289,2.68953,1858.5,1858.1,12.2111]
[1746116110588,1.07585,1858.4,1858.3,1.07582]
[1746116111393,1.07587,1858.3,1858.2,2.7519]
[1746116111584,1.07587,1858.3,1858.2,1.676]
[1746116112287,2.80927,1858.3,1858.2,1.676]
[1746116112489,4.65647,1858.3,1858.2,1.676]
[1746116114394,1.07593,1858.2,1858.1,3.661]
[1746116114692,2.92313,1858.2,1858.1,4.73699]
[1746116115186,2.92313,1858.2,1858.1,6.58699]
[1746116115583,1.07592,1858.3,1858.2,1.07593]
[1746116115787,1.07586,1858.4,1858.3,1.07584]
[1746116116086,1.07586,1858.4,1858.3,1.7603]
[1746116116285,2.87036,1858.4,1858.3,1.7603]
[1746116116487,2.87036,1858.4,1858.3,2.83617]
[1746116116689,2.87036,1858.4,1858.3,1.7603]
[1746116117196,1.07593,1858.2,1858.1,3.661]
[1746116117793,2.92953,1858.2,1858.1,3.661]
[1746116118496,1.07599,1858.1,1858.0,1.7603]
[1746116118693,4.52479,1858.1,1858.0,1.7603]
[1746116119697,1.0761,1857.9,1857.8,4.73216]
[1746116120390,2.8278,1857.9,1857.8,4.73216]
[1746116120589,2.8278,1857.9,1857.8,6.51506]
[1746116120782,2.8278,1857.9,1857.8,3.656]
[1746116120982,2.8278,1857.9,1857.5,1.742]
[1746116120983,3.4736,1857.9,1857.5,1.742]
[1746116121193,1.07619,1857.8,1857.7,1.07615]
[1746116122291,1.07633,1857.6,1857.5,1.0763]
[1746116122595,1.07633,1857.6,1857.5,4.581]
[1746116122892,2.82675,1857.7,1857.6,1.07628]
[1746116123097,1.7505,1857.5,1857.4,13.87218]
[1746116123293,1.7505,1857.5,1857.4,7.94018]
[1746116123597,2.80122,1857.6,1857.5,1.07633]
[1746116123798,1.7249,1857.6,1857.3,7.00841]
[1746116124094,2.85357,1857.5,1857.4,1.07639]
[1746116124690,1.07651,1857.3,1857.2,1.0765]
[1746116124997,1.07651,1857.2,1857.1,4.61743]
[1746116125297,1.07649,1857.3,1857.2,1.07649]
[1746116125694,1.07651,1857.2,1857.1,4.61745]
[1746116127397,1.07663,1857.1,1857.0,1.07661]
[1746116127701,2.84903,1857.1,1857.0,1.07661]
[1746116127897,1.7724,1857.1,1857.0,1.07661]
[1746116128099,2.84897,1857.1,1857.0,1.07661]
[1746116128301,1.07662,1857.0,1856.9,4.60053]
[1746116128500,1.07662,1857.0,1856.9,3.5239]
[1746116129095,1.07662,1857.0,1856.9,4.60058]
[1746116129497,2.84901,1857.1,1857.0,1.07662]
[1746116130805,2.80905,1857.2,1857.1,1.07657]
[1746116132004,2.86607,1857.3,1857.2,1.07651]
[1746116132207,4.9238,1857.6,1857.4,1.07637]
[1746116132501,1.07643,1857.4,1857.3,1.07641]
[1746116133104,3.5933,1857.5,1857.2,1.7563]
[1746116133304,1.07645,1857.3,1857.2,2.83275]
[1746116133507,2.85563,1857.4,1857.3,1.07645]
[1746116134413,1.07638,1857.5,1857.4,1.07639]
[1746116134614,1.07639,1857.4,1857.3,2.76261]
[1746116135109,1.07639,1857.4,1857.3,1.6862]
[1746116135312,1.07645,1857.3,1857.2,2.83275]
[1746116135611,1.07651,1857.2,1857.1,15.56053]
[1746116136108,2.88359,1857.3,1857.2,1.07651]
[1746116136509,2.88359,1857.3,1857.1,14.484]
[1746116136510,1.07651,1857.2,1857.1,12.35272]
[1746116136708,2.88361,1857.2,1857.1,10.66652]
[1746116136913,6.43611,1857.2,1857.1,5.932]
[1746116137107,6.43611,1857.2,1857.1,7.00857]
[1746116137307,6.43611,1857.2,1857.1,5.932]
[1746116137518,6.43611,1857.2,1857.1,7.00857]
[1746116138012,4.63021,1857.2,1857.1,7.00857]
[1746116138311,4.63021,1857.2,1857.1,8.87547]
[1746116138512,1.07651,1857.2,1857.1,8.87547]
[1746116138712,6.43611,1857.2,1857.1,8.87547]
[1746116138913,6.43611,1857.2,1857.1,7.7989]
[1746116139117,6.43611,1857.2,1857.1,8.87547]
[1746116139810,1.07657,1857.1,1857.0,1.8386]
[1746116140117,1.07668,1856.9,1856.8,3.658]
[1746116140413,1.07674,1856.8,1856.7,10.21655]
[1746116140616,1.0768,1856.7,1856.6,8.83722]
[1746116141115,1.07679,1856.8,1856.7,1.07677]
[1746116141315,2.80559,1856.8,1856.7,1.07677]
[1746116141519,4.61949,1856.8,1856.7,1.07677]
[1746116142218,1.0768,1856.7,1856.6,7.7604]
[1746116142513,1.07686,1856.6,1856.5,14.67907]
[1746116142707,1.07686,1856.6,1856.5,8.19707]
[1746116143111,1.07686,1856.6,1856.5,9.91697]
[1746116145216,1.848,1856.7,1856.5,9.91697]
[1746116145217,2.92484,1856.7,1856.6,1.07686]
[1746116146119,1.848,1856.7,1856.6,1.07686]
[1746116146320,1.848,1856.7,1856.6,2.77056]
[1746116146921,2.90122,1856.9,1856.8,1.07674]
[1746116147121,4.63572,1856.9,1856.8,1.07674]
[1746116147325,1.07674,1856.8,1856.7,2.77044]
[1746116147521,2.81124,1856.8,1856.7,2.77044]
[1746116148526,1.07685,1856.7,1856.6,1.0768]
[1746116148725,1.7402,1856.7,1856.6,1.0768]
[1746116149025,2.817,1856.7,1856.6,2.8882]
[1746116152725,1.7402,1856.7,1856.6,2.8882]
[1746116153325,2.817,1856.7,1856.6,2.8882]
[1746116153527,2.817,1856.7,1856.6,1.0768]
[1746116153719,1.7402,1856.7,1856.6,1.0768]
[1746116154216,2.817,1856.7,1856.6,1.0768]
[1746116154723,1.07686,1856.6,1856.5,10.05387]
[1746116154924,2.79246,1856.6,1856.5,10.05387]
[1746116155428,1.07684,1856.7,1856.6,1.0768]
[1746116155627,1.07684,1856.7,1856.6,2.7715]
[1746116156130,1.06616803,1856.7,1856.6,1.6947]
[1746116156330,2.78176803,1856.7,1856.6,1.07686]
[1746116156826,1.07686,1856.6,1856.5,8.19707]
[1746116157030,2.79246,1856.6,1856.5,9.89177]
[1746116157826,1.7156,1856.6,1856.5,9.89177]
[1746116158131,1.07686,1856.7,1856.6,1.07686]
[1746116158322,1.07686,1856.7,1856.6,2.79366]
[1746116158723,2.91966,1856.7,1856.6,2.79366]
[1746116159028,4.28457,1856.8,1856.7,1.0768]
[1746116159228,2.91957,1856.8,1856.7,1.0768]
[1746116159428,1.0768,1856.7,1856.6,2.7936]
[1746116159630,2.9196,1856.7,1856.6,2.7936]
[1746116162735,2.9196,1856.7,1856.6,1.0768]
[1746116163335,1.07686,1856.6,1856.5,8.19706]
[1746116163633,2.81256,1856.6,1856.5,8.19706]
[1746116163833,6.34096,1856.6,1856.5,8.19706]
[1746116164532,3.4279,1856.6,1856.5,8.19706]
[1746116164724,5.89966,1856.8,1856.6,1.07686]
[1746116164725,1.07685,1856.7,1856.6,1.07686]
[1746116165028,1.07685,1856.7,1856.6,2.87206]
[1746116167034,2.88125,1856.7,1856.6,1.07686]
[1746116167239,1.07686,1856.6,1856.5,9.94057]
[1746116167534,2.88126,1856.6,1856.5,6.44167]
[1746116169139,2.88126,1856.6,1856.5,4.73591]
[1746116169328,2.88126,1856.6,1856.5,3.659]